Cogmind - Beta 14 @@@ ROGUE MODE // 2024.09.13 @ 16:04:52 Player: Maulwurf Result: Destroyed by C-17 Slicer with Concussive RPG Performance ------------- Evolutions (2) 1000 Regions Visited (5) 1000 Robots Destroyed (6) 30 Value Destroyed (158) 158 Prototype IDs (0) 0 Alien Tech Used (0) 0 Bonus (0) 0 TOTAL SCORE: 2188 Bonus ------- None Cogmind --------- Core Integrity 0/550 Matter 300/300 Energy 98/100 System Corruption 0% Temperature Cool (0) Movement Core (50) Location -8/Materials Parts ------- > --- POWER (2) -------- (None) > --- PROPULSION (5) --- (None) > --- UTILITY (2) ------ (None) > --- WEAPON (2) ------- (None) > --- INVENTORY (5) ---- Light Assault Rifle Light Assault Rifle Peak State ------------ > --- POWER ------------ Light Ion Engine > --- PROPULSION ------- Flight Unit Flight Unit > --- UTILITY ---------- (None) > --- WEAPON ----------- Light Assault Rifle Makeshift Shrapnel Gun > --- INVENTORY -------- Light Assault Rifle [Rating: 8] Favorites ----------- Power Light Ion Engine Engine Light Ion Engine Propulsion Flight Unit Wheel Compact Wheel Flight Unit Flight Unit Utility None Weapon Light Assault Rifle Ballistic Gun Light Assault Rifle Special Weapon Mining Laser Impact Weapon Heavy Hammer Build | -11 -10 -10 -9 -9 -8 ------- Run | Yrd Mat Min Mat Min Mat Slots Evolved 4 | . . . 2 . 2 Power 1 | . . . . . 1 Propulsion 3 | . . . 2 . 1 Utility . | . . . . . . Weapon . | . . . . . . Parts Attached 14 | 3 2 7 . . 2 Power 2 | 1 . 1 . . . Engine 2 | 1 . 1 . . . Core . | . . . . . . Reactor . | . . . . . . Propulsion 4 | 2 . 2 . . . Treads . | . . . . . . Leg . | . . . . . . Wheel 2 | 2 . . . . . Hover . | . . . . . . Flight 2 | . . 2 . . . Utility . | . . . . . . Device . | . . . . . . Storage . | . . . . . . Processor . | . . . . . . Hackware . | . . . . . . Protection . | . . . . . . Artifact . | . . . . . . Weapon 8 | . 2 4 . . 2 Energy Gun . | . . . . . . Energy Cannon . | . . . . . . Ballistic Gun 4 | . . 4 . . . Ballistic Cannon . | . . . . . . Launcher . | . . . . . . Special Weapon 2 | . 2 . . . . Impact Weapon 2 | . . . . . 2 Slashing Weapon . | . . . . . . Piercing Weapon . | . . . . . . Special Melee Weapon . | . . . . . . Unidentified Prototypes . | . . . . . . Parts Lost 9 | . . 5 1 . 3 Power 2 | . . 1 1 . . Propulsion 4 | . . 2 . . 2 Utility . | . . . . . . Weapon 3 | . . 2 . . 1 Highest Loss Streak 5 | . . 5 1 . 3 To Critical Strikes . | . . . . . . Average Slot Usage (%) 51 | . 60 58 55 44 20 Engine 8 | . 14 10 11 . . Wheel 10 | . 28 9 . . . Flight 12 | . . 16 22 22 5 Ballistic Gun 11 | . . 14 22 22 4 Special Weapon 6 | . 17 6 . . . Impact Weapon 1 | . . . . . 10 Peak Build Rating 8 | 3 5 8 8 7 7 Average Rating 5 | 2 4 5 7 7 4 On Entrance 5 | . 3 5 8 7 7 Naked Turns 9 | . . 1 . . 8 Heaviest Build 6 | 3 5 6 6 3 6 Greatest Support 32 | 32 32 32 8 8 8 Greatest Overweight (x) 1 | . . . . . 1 Average Overweight (x) . | . . . . . . Largest Inventory Capacity 5 | 5 5 5 5 5 5 Average Capacity 5 | 5 5 5 5 5 5 Most Carried 4 | 2 2 4 1 1 3 Average Carried . | . . . 1 1 1 Final Capacity 5 | 5 5 5 5 5 5 Final Carried 2 | . . 1 1 1 2 Class Distribution -------------------- 100% | Mutant Dominant Class ---------------- Mutant | -10/Materials Mutant | -10/Mines Mutant | -9/Materials Mutant | -9/Mines Mutant | -8/Materials Resources | -11 -10 -10 -9 -9 -8 ----------- Run | Yrd Mat Min Mat Min Mat Matter Collected 252 | 117 . 135 . . . Remotely . | . . . . . . Salvage Created 154 | . . 20 . . 134 Parts 11 | . . 8 . . 3 Haulers Intercepted . | . . . . . . Recyclers Shooed . | . . . . . . Parts Field Recycled . | . . . . . . Retrieved Matter . | . . . . . . Parts Self-Destructed . | . . . . . . Prevented . | . . . . . . Kills | -11 -10 -10 -9 -9 -8 ------- Run | Yrd Mat Min Mat Min Mat Combat Hostiles Destroyed 6 | . . 3 . . 3 Melee 2 | . . . . . 2 Guns 1 | . . 1 . . . Cannons 2 | . . 2 . . . Classes Destroyed 4 | . . 1 . . 3 Swarmer 3 | . . 3 . . . Grunt 1 | . . . . . 1 Brawler 1 | . . . . . 1 Sentry 1 | . . . . . 1 Best Kill Streak 2 | . . 2 . . 2 Combat Bots Only 3 | . . 2 . . 3 Max Kills in Single Turn 2 | . . 2 . . 1 Gunslinging . | . . . . . . Exploded . | . . . . . . Melee 1 | . . . . . 1 Uniques/NPCs Destroyed . | . . . . . . Combat | -11 -10 -10 -9 -9 -8 -------- Run | Yrd Mat Min Mat Min Mat Hostile Shots Fired 119 | . 9 31 7 . 72 Missed 33 | . 5 3 4 . 21 Damage Taken 1202 | . 35 239 49 . 879 Core 650 | . 16 64 16 . 554 Absorbed by Shields . | . . . . . . Core Remaining (%) 88 | 100 . 68 . 96 . Volleys Fired 7 | . . 7 . . . Largest 2 | . . 2 . . . Hottest 200 | . . 200 . . . Shots Fired 11 | . . 11 . . . Gun 6 | . . 6 . . . Cannon . | . . . . . . Launcher . | . . . . . . Special 5 | . . 5 . . . Kinetic 6 | . . 6 . . . Thermal 5 | . . 5 . . . Explosive . | . . . . . . Electromagnetic . | . . . . . . Robot Hit Streak 2 | . . 2 . . . Robot Miss Streak 4 | . . 4 . . . Penetration Max . | . . . . . . Secondary Targets . | . . . . . . Shots Hit Robots 16 | . . 4 . . 12 Core Hits 8 | . . 5 . . 3 Critical Kills . | . . . . . . Critical Parts Destroyed 2 | . . . . . 2 Critical Strikes 2 | . . . . . 2 Smash 2 | . . . . . 2 Melee Attacks 15 | . . . . . 15 Impact 15 | . . . . . 15 Slashing . | . . . . . . Piercing . | . . . . . . Sneak Attacks . | . . . . . . Combat Hostiles . | . . . . . . Follow-up Attacks 2 | . . . . . 2 Damage Inflicted 497 | . . 98 . . 399 Guns 23 | . . 23 . . . Cannons . | . . . . . . Explosions . | . . . . . . Melee 383 | . . . . . 383 Ramming 43 | . . 27 . . 16 Kinetic 23 | . . 23 . . . Thermal 48 | . . 48 . . . Explosive . | . . . . . . Electromagnetic . | . . . . . . Impact 383 | . . . . . 383 Slashing . | . . . . . . Piercing . | . . . . . . Highest Corruption . | . . . . . . Average Corruption . | . . . . . . Corruption Purged . | . . . . . . Corruption Blocked . | . . . . . . Overload Shots . | . . . . . . Overflow Damage 78 | . . . . . 78 Projectiles . | . . . . . . Explosions . | . . . . . . Melee 78 | . . . . . 78 Knockbacks . | . . . . . . Impact . | . . . . . . Kinetic . | . . . . . . Secondary . | . . . . . . Self-Inflicted Damage 15 | . . 8 . . 7 Shots . | . . . . . . Rammed 21 | 1 . 15 . . 5 Targets Rammed 21 | 1 . 15 . . 5 Kicked . | . . . . . . Crushed . | . . . . . . Highest Temperature 96 | . . 96 7 . . Average Temperature 54 | . . 56 7 . . Received Heat Transfer 393 | . . 6 27 . 360 Siege Activations . | . . . . . . Robots Corrupted 1 | . . . . . 1 Combat Hostiles 1 | . . . . . 1 Parts Fried . | . . . . . . Impact Corruptions 3 | . . . . . 3 Robots Melted . | . . . . . . Combat Hostiles . | . . . . . . Parts Melted . | . . . . . . Heat Transferred 100 | . . 100 . . . Parts Sabotaged . | . . . . . . Parts Stolen . | . . . . . . Parts Stripped . | . . . . . . Power Chain Reactions . | . . . . . . Alert | -11 -10 -10 -9 -9 -8 ------- Run | Yrd Mat Min Mat Min Mat Peak Influence 122 | . 45 67 95 33 122 Initial 33 | . . 17 20 33 12 Average 33 | . 3 35 39 33 76 Maximum Alert Level . | . . . . . . Low Security (%) 100 | 100 100 100 100 100 100 Level 1 . | . . . . . . Level 2 . | . . . . . . Level 3 . | . . . . . . Level 4 . | . . . . . . Level 5 . | . . . . . . High Security . | . . . . . . Max Security . | . . . . . . Squads Dispatched 4 | . . . 1 . 3 Investigation 2 | . . . 1 . 1 Extermination . | . . . . . . Reinforcement 2 | . . . . . 2 Assault . | . . . . . . Garrison . | . . . . . . Intercept . | . . . . . . Searches Triggered . | . . . . . . Construction Impeded . | . . . . . . Haulers Reinforced . | . . . . . . Active Scanning Responses . | . . . . . . Cargo Convoy Interrupts . | . . . . . . Stealth | -11 -10 -10 -9 -9 -8 --------- Run | Yrd Mat Min Mat Min Mat Distress Signals 1 | . 1 . . . . Communications Jammed . | . . . . . . Distress Signals . | . . . . . . Times Spotted 24 | . 5 5 5 . 9 Peak Tracking Total 6 | . 5 3 5 . 6 Tactical Retreats 2 | . 1 . 1 . . Traps | -11 -10 -10 -9 -9 -8 ------- Run | Yrd Mat Min Mat Min Mat Traps Triggered . | . . . . . . Indirectly . | . . . . . . Trap Hack Attempts . | . . . . . . Triggered . | . . . . . . Disarmed . | . . . . . . Reprogrammed . | . . . . . . Reused . | . . . . . . Traps Extracted . | . . . . . . Installed . | . . . . . . Triggered . | . . . . . . Machines | -11 -10 -10 -9 -9 -8 ---------- Run | Yrd Mat Min Mat Min Mat Machines Disabled . | . . . . . . Max in Single Turn . | . . . . . . Machines Repaired . | . . . . . . Machines Dismantled . | . . . . . . Machines Sabotaged . | . . . . . . Overloaded Fab Kills . | . . . . . . Hacking | -11 -10 -10 -9 -9 -8 --------- Run | Yrd Mat Min Mat Min Mat Machines Accessed 3 | . . . 1 . 2 Terminals 3 | . . . 1 . 2 Fabricators . | . . . . . . Repair Stations . | . . . . . . Recycling Units . | . . . . . . Scanalyzers . | . . . . . . Garrison Access . | . . . . . . Total Hacks 7 | . . . 2 . 5 Successful 1 | . . . . . 1 Failed 6 | . . . 2 . 4 Catastrophic 1 | . . . 1 . . Database Lockouts . | . . . . . . Manual 2 | . . . 2 . . Terminals 7 | . . . 2 . 5 Fabricators . | . . . . . . Repair Stations . | . . . . . . Recycling Units . | . . . . . . Scanalyzers . | . . . . . . Garrison Access . | . . . . . . Terminal Hacks 1 | . . . . . 1 Record 1 | . . . . . 1 Fabricator Hacks . | . . . . . . Repair Station Hacks . | . . . . . . Recycling Unit Hacks . | . . . . . . Scanalyzer . | . . . . . . Garrison Access Hacks . | . . . . . . Unauthorized Hacks . | . . . . . . Terminals . | . . . . . . Fabricators . | . . . . . . Repair Stations . | . . . . . . Recycling Units . | . . . . . . Scanalyzers . | . . . . . . Garrison Access . | . . . . . . Data Cores Recovered . | . . . . . . Used . | . . . . . . Hacking Detections 3 | . . . 1 . 2 Full Trace Events 2 | . . . 1 . 1 Feedback Events . | . . . . . . Feedback Blocked . | . . . . . . Robot Schematics Acquired . | . . . . . . Robots Built . | . . . . . . Authchips . | . . . . . . Time . | . . . . . . Total Robot Build Rating . | . . . . . . Part Schematics Acquired . | . . . . . . Parts Built . | . . . . . . Authchips . | . . . . . . Time . | . . . . . . Total Part Build Rating . | . . . . . . Parts Repaired . | . . . . . . Time . | . . . . . . Parts Recycled . | . . . . . . Recycled Matter . | . . . . . . Retrieved Matter . | . . . . . . Retrieved Components . | . . . . . . Parts Scanalyzed . | . . . . . . Part Schematics Acquired . | . . . . . . Parts Damaged . | . . . . . . Bothacking | -11 -10 -10 -9 -9 -8 ------------ Run | Yrd Mat Min Mat Min Mat Used RIF Installer . | . . . . . . Robots Hacked . | . . . . . . Non-combat . | . . . . . . Combat . | . . . . . . Robot Hacks Applied . | . . . . . . Relay Couplers Released . | . . . . . . Fabnet Peak Effective % . | . . . . . . Robots Rewired . | . . . . . . Allies Hacked . | . . . . . . Hacks Repelled . | . . . . . . Allies | -11 -10 -10 -9 -9 -8 -------- Run | Yrd Mat Min Mat Min Mat Total Allies . | . . . . . . Largest Group . | . . . . . . Highest-Rated Group . | . . . . . . Highest-Rated Ally . | . . . . . . Total Orders . | . . . . . . Ally Attacks . | . . . . . . Total Damage . | . . . . . . Kills . | . . . . . . Allies Corrupted . | . . . . . . Allies Melted . | . . . . . . Intel | -11 -10 -10 -9 -9 -8 ------- Run | Yrd Mat Min Mat Min Mat Robot Analysis Total . | . . . . . . Derelict Logs Recovered . | . . . . . . Drone Launches . | . . . . . . Drone Recoveries . | . . . . . . Exploration | -11 -10 -10 -9 -9 -8 ------------- Run | Yrd Mat Min Mat Min Mat Turns Passed 500 | 58 72 240 32 23 75 Spaces Moved 705 | 44 66 385 84 63 63 Core 14 | 6 . 3 . . 5 Treads . | . . . . . . Legs . | . . . . . . Wheels 157 | 38 66 53 . . . Hover . | . . . . . . Flight 534 | . . 329 84 63 58 Fastest Speed 37 | 50 100 37 37 37 37 Average Speed 52 | 93 100 45 37 37 46 Slowest Speed 120 | 100 100 100 37 37 120 Overloaded Moves . | . . . . . . Propulsion Burnouts . | . . . . . . Robots Hopped 8 | . . 7 1 . . Cave-ins Triggered . | . . . . . . Exploration Rate (%) 25 | 4 17 89 16 14 10 Regions Visited 5 Branch Regions 2 Pre-discovered Areas . | . . . . . . Known Exits Taken . | . . . . . . Unknown Exits Taken 5 | 1 1 1 1 1 . Scrap Searched 1 | . . 1 . . . Spaces Dug . | . . . . . . Terrain Destroyed 1 | . . 1 . . . Melee . | . . . . . . Projectile 1 | . . 1 . . . AOE . | . . . . . . Terrain Rammed . | . . . . . . Walls Destroyed . | . . . . . . Machines Disabled . | . . . . . . Actions | -11 -10 -10 -9 -9 -8 --------- Run | Yrd Mat Min Mat Min Mat Total 785 | 60 72 422 83 62 86 Wait 22 | 10 3 8 1 . . Move 684 | 43 65 370 81 62 63 Hop 8 | . . 7 1 . . Pick Up 13 | 3 2 6 . . 2 Fast Attach . | . . . . . . Attach 14 | 3 2 7 . . 2 Detach 3 | . . 2 . . 1 Swap . | . . . . . . Drop . | . . . . . . Fire 7 | . . 7 . . . Melee 13 | . . . . . 13 Ram 21 | 1 . 15 . . 5 Kick . | . . . . . . Crush . | . . . . . . Escape Stasis . | . . . . . . Rewire . | . . . . . . Trap . | . . . . . . Miscellaneous . | . . . . . . Route ------- -11/Scrapyard -10/Materials (discovered 2 exits: *Mat / [*Min]) -10/Mines -9/Materials -9/Mines -8/Materials History --------- Turn | Location | Event 6 | -11/Scrapyard | Discovered new exit (range 15) 59 | -11/Scrapyard | Entered Materials 66 | -10/Materials | Discovered new exit (range 15) 113 | -10/Materials | Discovered new exit (range 16) 131 | -10/Materials | Entered Mines 257 | -10/Mines | A weapon hastily lodged in a ceiling crevice suddenly fell to the ground 258 | -10/Mines | Lost 5 parts (1p2n2w) 310 | -10/Mines | Build established: Mutant 367 | -10/Mines | Discovered new exit (range 11) 371 | -10/Mines | Entered Materials 371 | -9/Materials | Evolved 2 slots: Propulsion x2 399 | -9/Materials | Discovered new exit (range 12) 403 | -9/Materials | Entered Mines 424 | -9/Mines | Discovered new exit (range 8) 426 | -9/Mines | Entered Materials 426 | -8/Materials | Evolved 2 slots: Power x1, Propulsion x1 487 | -8/Materials | Core integrity fell below 50% 497 | -8/Materials | Core integrity fell below 20% 498 | -8/Materials | Lost 3 parts (2n1w) 501 | -8/Materials | Destroyed by C-17 Slicer with Concussive RPG Last Messages --------------- 00452_ Destroyed Heat Sink. 00452_ Y-45 Defender system corrupted by crushing effect. 00458_ Y-45 Defender destroyed. 00467_ Flight Unit destroyed. 00470_ Knocked back. 00472_ B-36 Bruiser suffers critical hit (Smash). 00472_ Destroyed Lgt. Treads. 00472_ B-36 Bruiser system corrupted by crushing effect. 00472_ Hvy. Hammer follow-up attack on B-36 Bruiser. 00478_ B-36 Bruiser suffers critical hit (Smash). 00478_ Destroyed Lgt. Treads. 00478_ B-36 Bruiser system corrupted by crushing effect. 00479_ B-36 Bruiser system terminally corrupted. 00481_ Hvy. Hammer follow-up attack on G-47 Trooper. 00486_ Critical hit (Burn: +37). 00486_ G-47 Trooper destroyed. 00490_ Hvy. Hammer severed. 00495_ Slammed into C-17 Slicer. 00496_ Destabilizing: Core damaged (-22). 00497_ Slammed into Y-45 Defender. Map ----- +----------------------------------------------------+ | | | | | | | | | ?????????????????????????????????????????????????? | | ?????????????????????????????????????????????????? | | ?????????????????????????????????????????????????? | | ?????????????????????????????????????????????????? | | ?????????????????????????????????????????????????? | | ?????????????????????????????????????????????????? | | ?????????????????????????????????????????????????? | | ?????????????????????????????????????????????????? | | ?????????????????????????????????????????????????? | | ?????????????????????????????????????????????????? | | ?????????????????????????????????????????????????? | | ?????????????????????????????????????????????????? | | ?????????????????????????????????????????????????? | | ??????????????????????##+##??????????????????????? | | ??????????????????????# #########?????########?? | | ??????????????????????# ## /// ##????# """ #?? | | ??????????????????????# ## /// #????#! "Y" #?? | | ????????????????""????+ ## %#?????# ### | | ??????????????" """ ??# ## =#?????# # | | ????????????????? # ## #?????# # | | ????????????????????# ## %// #??????? # | | ????????????????????# @ ###/#############+### | | ????????????????????# %!c% | | ????????????????????##! Y%c | | ?????????????????????# | | ?????????????????????# / ###+###########/####### | | ?????????????????????## ##* #???# #?? | | ??????????????????????# ## T #???# """ "" #?? | | ??????????????????????# ##! #???# """ "" #?? | | ??????????????????????# ## #???# """ T" #?? | | ??????????????????????# ?# #???# "" #?? | | ??????????????????????# ?# [ #???# """ "" #?? | | ??????????????????????# ?########???# """ #?? | | ?????????????????????? ????????????# """ #?? | | ?????????????????????? ????????????# #?? | | ????????????????????? H ????????????##########?? | | ?????????????????????? ???????????????????????? | | ???????????????????????? ????????????????????????? | | ?????????????????????????????????????????????????? | | ?????????????????????????????????????????????????? | | ?????????????????????????????????????????????????? | | ?????????????????????????????????????????????????? | | ?????????????????????????????????????????????????? | | ?????????????????????????????????????????????????? | | ?????????????????????????????????????????????????? | | ?????????????????????????????????????????????????? | +----------------------------------------------------+ Best States ------------- Heat Dissipation 31 Energy Generation 10 Energy Capacity 125 Matter Stores 300 Matter Capacity 300 Sight Range 16 Terrain Scan Density 10 Evasion (%) 62 Item Schematics ----------------- None Robot Schematics ------------------ None Fabricated ------------ Nothing Alien Tech Used ----------------- None Achievements -------------- None Challenges ------------ None Game ------ Seed GatlingBottomlessMallet Manual? 0 Play Time 00:11:28 Cumulative 12.6 hours Start 2024.09.13 @ 15:48:50 End 2024.09.13 @ 16:04:52 Sessions 1 Manual Loads 0 Difficulty Rogue Special Mode None Game No. 30 Rogue 30 Adventurer 0 Explorer 0 Win Type - Total 0 Types 0/0/0/0/0/0/0/0/0 Lore% 12 Gallery% 11 Achievement% 17 Wizard Run 0 Options --------- Layout 0 ASCII 0 Keyboard 1 Movement Numpad Keybinds 0 Fullscreen 1 Font 18/SmallcapsGlow Map View 76x50 Zoom Use 0% Tactical HUD 1 Map Filters NONE Filters NONE Steam 1 RUN: a2be9abf-2af3-4580-a094-1642b0556514